Cogmind - Beta 13 X1 @@@ ROGUE MODE // 2023.08.09 @ 02:52:02 Player: cptwinky Result: Escaped! Performance ------------- Evolutions (9) 4500 Regions Visited (26) 5200 Robots Destroyed (320) 1600 Value Destroyed (13380) 13380 Prototype IDs (56) 1120 Alien Tech Used (0) 0 Bonus (9480) 9480 TOTAL SCORE: 35280 Bonus ------- High Alert Combat Kills 1163 Follower Combat Kills 1359 Entered Garrisons 400 Used RIF Installer 1000 Entered DSFs 500 Met Data Miner 300 Met Zhirov 300 Met R17 at Cetus 500 Read Decrypted Archives 300 Met R17 at Research 2000 Recovered Sigix Corpse 4000 Win 3000 Friendly Fire -5342 Cogmind --------- Core Integrity 1458/1600 Matter 272/300 Energy 189/190 System Corruption 0% Temperature Cool (2) Movement Flying (39) Location To Epsilon Eridani Parts ------- > --- POWER (2) -------- Light Quantum Reactor > --- PROPULSION (8) --- Nuclear Pulse Array Impulse Thruster Array > --- UTILITY (13) ----- Advanced Heat Sink Terrain Scan Processor Advanced Targeting Computer Advanced Melee Analysis Suite Core Analyzer System Shield Relay Coupler [NC] (29) Mini Drone Bay (2/3) > --- WEAPON (2) ------- Improved Remote Datajack > --- INVENTORY (5) ---- Improved Force Booster Transdimensional Reconstructor Heavy Mace Sigix Corpse Sigix Corpse Peak State ------------ > --- POWER ------------ Particle Reactor Light Quantum Reactor > --- PROPULSION ------- Nuclear Pulse Array Nuclear Pulse Array Nuclear Pulse Array Impulse Thruster Array > --- UTILITY ---------- Advanced Heat Sink Advanced Sensor Array Improved Signal Interpreter Terrain Scan Processor Advanced Targeting Computer Advanced Melee Analysis Suite Core Analyzer Improved Reaction Control System System Shield Relay Coupler [NC] Relay Coupler [NC] Drone Bay Mini Drone Bay > --- WEAPON ----------- Improved Remote Datajack Heavy Mace > --- INVENTORY -------- Improved Force Booster Transdimensional Reconstructor Enhanced Nova Cannon Sigix Corpse Sigix Corpse [Rating: 131] Favorites ----------- Power Improved Deuterium Engine Engine Improved Deuterium Engine Power Core Light Fission Core Reactor Light Antimatter Reactor Propulsion Titanium Leg Treads Light Treads Leg Titanium Leg Wheel Compact Wheel Flight Unit Nuclear Pulse Array Utility Large Storage Unit Device Advanced Phase Shifter Storage Large Storage Unit Processor Advanced Targeting Computer Hackware Relay Coupler [NC] Protection Hardened Heavy Armor Plating Weapon Cooled Particle Cannon Energy Gun Heavy Particle Gun Energy Cannon Cooled Particle Cannon Ballistic Gun Heavy Battle Rifle Ballistic Cannon Heavy Assault Cannon Launcher Heavy Rocket Launcher Special Weapon Improved Remote Datajack Impact Weapon Heavy Mace Slashing Weapon Phasing Sabre Special Melee Weapon Improved Datajack Build | -11 -10 -10 -8 -8 -7 -7 -7 -7 -6 -6 -6 -6 -6 -6 -5 -5 -5 -5 -5 -5 -4 -4 -3 -2 -2 -1 ------- Run | Jun Mat Sub Mat Gar Fac Low Low Dat Pro Fac Gar Fac Low Zio Pro Fac Ext Cet Arc Hub Fac DSF Res Res Qua Acc Slots Evolved 18 | . . . 4 . 2 . . . . 2 . . . . . 2 . . . . 2 . 2 2 . 2 Power 1 | . . . . . 1 . . . . . . . . . . . . . . . . . . . . . Propulsion 6 | . . . 2 . 1 . . . . . . . . . . 1 . . . . . . 1 1 . . Utility 11 | . . . 2 . . . . . . 2 . . . . . 1 . . . . 2 . 1 1 . 2 Weapon . | . . . . . . . . . . . . . . . . . . . . . . . . . . . Parts Attached 417 | 2 7 33 37 20 27 9 14 1 15 5 8 43 5 40 12 9 29 14 13 13 . 19 25 7 5 5 Power 40 | . . 2 4 . 3 . 3 . . . 1 7 . 4 2 . 2 2 1 2 . 2 2 . 1 2 Engine 15 | . . 2 3 . 1 . 1 . . . . 4 . 4 . . . . . . . . . . . . Core 14 | . . . 1 . 2 . 2 . . . . 3 . . 2 . 1 . 1 2 . . . . . . Reactor 11 | . . . . . . . . . . . 1 . . . . . 1 2 . . . 2 2 . 1 2 Propulsion 57 | 2 . 2 5 . 5 . 1 . . . 2 6 1 3 2 . 10 4 . . . 6 7 1 . . Treads 13 | 2 . 1 . . . . . . . . . . . . . . . 3 . . . 6 1 . . . Leg 37 | . . 1 5 . 5 . 1 . . . 2 6 1 3 2 . 9 1 . . . . 1 . . . Wheel 1 | . . . . . . . . . . . . . . . . . 1 . . . . . . . . . Hover . | . . . . . . . . . . . . . . . . . . . . . . . . . . . Flight 6 | . . . . . . . . . . . . . . . . . . . . . . . 5 1 . . Utility 126 | . 2 3 14 8 5 6 8 . . 3 3 11 2 16 2 5 9 3 3 2 . 4 11 2 2 2 Device 67 | . . . 7 2 4 6 6 . . 1 2 5 1 11 . 4 6 1 2 1 . 1 3 2 1 1 Storage 5 | . 1 . 1 . . . . . . 1 . . . . . 1 . . . . . . 1 . . . Processor 11 | . . . . . . . 1 . . 1 . 2 1 1 . . . . . . . 1 4 . . . Hackware 11 | . . . . 1 1 . . . . . 1 2 . . . . . . . . . 2 2 . 1 1 Protection 32 | . 1 3 6 5 . . 1 . . . . 2 . 4 2 . 3 2 1 1 . . 1 . . . Artifact . | . . . . . . . . . . . . . . . . . . . . . . . . . . . Weapon 194 | . 5 26 14 12 14 3 2 1 15 2 2 19 2 17 6 4 8 5 9 9 . 7 5 4 2 1 Energy Gun 23 | . 2 9 4 1 2 . . . 5 . . . . . . . . . . . . . . . . . Energy Cannon 38 | . . . 4 1 1 . . . 1 . . 3 1 8 . 2 2 3 5 3 . . 1 2 . 1 Ballistic Gun 36 | . . 9 4 5 5 1 1 . 3 . . . . . . . 1 . . 1 . 4 2 . . . Ballistic Cannon 21 | . . . . . . . . . . 2 1 8 . 1 4 1 4 . . . . . . . . . Launcher 24 | . 2 3 2 4 1 2 . 1 5 . . . 1 3 . . . . . . . . . . . . Special Weapon 30 | . . 1 . . 2 . . . . . 1 5 . 4 2 1 1 2 3 5 . 2 1 . . . Impact Weapon 10 | . 1 2 . . 3 . . . . . . 1 . . . . . . . . . . . 2 1 . Slashing Weapon 5 | . . . . . . . . . . . . . . 1 . . . . 1 . . 1 1 . 1 . Piercing Weapon . | . . . . . . . . . . . . . . . . . . . . . . . . . . . Special Melee Weapon 7 | . . 2 . 1 . . 1 . 1 . . 2 . . . . . . . . . . . . . . Unidentified Prototypes 10 | . . . 2 . . . 1 . . . . 1 . 1 . 1 . 2 . . . . 1 . 1 . Corrupted Parts 3 | . . . . . . . . . . . . . . . 1 . . 2 . . . . . . . . System Corruption 7 | . . . . . . . . . . . . . . . 1 . . 6 . . . . . . . . Parts Lost 53 | . . 1 2 2 . . 1 . . . . 2 . 7 4 1 8 . 4 8 . 6 2 . . 5 Power 7 | . . . . . . . . . . . . 1 . 2 1 . . . 1 1 . 1 . . . . Propulsion 16 | . . . . . . . . . . . . . . . 2 . 5 . . 2 . 4 1 . . 2 Utility 21 | . . . 2 2 . . 1 . . . . . . 4 1 . 2 . 2 3 . 1 . . . 3 Weapon 9 | . . 1 . . . . . . . . . 1 . 1 . 1 1 . 1 2 . . 1 . . . Highest Loss Streak 5 | . . 1 2 1 . . 1 . . . . 1 . 3 2 1 3 . 4 5 . 5 2 . . 3 To Critical Strikes 1 | . . . . . . . . . . . . . . . . . . . . . . 1 . . . . Average Slot Usage (%) 88 | . 91 99 79 85 82 86 80 85 85 82 81 88 93 92 95 88 92 81 73 70 36 62 67 77 80 72 Engine 6 | . 14 13 4 7 8 6 2 7 7 6 6 4 6 6 9 . . . . . . . . . . . Core 5 | . . . 2 . 1 6 11 7 7 6 3 3 6 5 1 11 7 5 6 11 5 3 . . . . Treads 3 | . 28 27 . . . . . . . . . . . . . . . 11 17 12 5 21 9 . . . Leg 24 | . . . 21 23 24 26 28 28 28 25 27 33 33 32 32 29 29 10 . . . . 1 . . . Device 8 | . . . 16 15 16 20 12 14 14 15 12 6 6 5 6 11 12 10 9 9 . . 4 12 16 16 Storage 6 | . 14 13 7 7 6 6 7 7 7 6 6 6 6 6 6 5 5 5 5 5 5 5 3 . . . Processor 7 | . . . . . . . . . . 3 6 6 13 13 13 11 11 11 11 11 10 11 20 21 21 19 Protection 7 | . 5 13 10 16 9 6 3 7 7 6 6 6 6 6 9 5 7 5 5 7 5 2 1 . . . Energy Gun 2 | . 13 9 3 6 5 6 7 . 6 . . . . . . . . . . . . . . . . . Energy Cannon 5 | . . . 5 . . . . . . 3 . 3 12 12 . 1 2 10 6 8 . . . . . . Ballistic Gun 3 | . 14 16 4 6 5 5 7 7 6 2 . . . . . . . . . . 5 8 6 . . . Naked Turns . | . . . . . . . . . . . . . . . . . . . . . . . . . . . Heaviest Build 98 | 11 27 37 76 69 75 71 73 77 78 83 80 79 74 80 86 87 90 98 98 89 53 60 80 57 49 52 Greatest Support 240 | 40 40 55 89 72 102 89 92 92 92 92 92 106 87 89 89 89 115 240 240 240 80 200 90 55 55 55 Greatest Overweight (x) 24 | . . . 1 . . . . . . . . . . 24 1 . 2 2 . . . . 1 1 . . Average Overweight (x) 1 | . . . . . . . . . . . . . . 12 . . . . . . . . . . . . Largest Inventory Capacity 15 | 8 15 15 15 15 15 15 15 15 15 15 15 15 15 15 15 15 15 15 15 15 15 15 15 5 5 5 Average Capacity 14 | 8 13 15 14 15 15 15 15 15 15 15 15 15 15 15 15 15 15 15 15 15 15 15 12 5 5 5 Most Carried 15 | 6 15 15 15 15 15 15 15 15 15 15 15 15 15 15 15 14 15 15 15 11 10 15 15 5 5 5 Average Carried 14 | 5 8 14 14 14 14 15 13 15 14 14 14 14 14 14 14 13 14 14 13 10 10 12 10 4 4 5 Final Capacity 15 | 8 15 15 15 15 15 15 15 15 15 15 15 15 15 15 15 15 15 15 15 15 15 15 5 5 5 5 Final Carried 15 | 4 15 15 15 15 15 15 15 15 15 15 15 15 14 15 13 13 15 15 11 10 10 12 5 4 5 5 Class Distribution -------------------- 71% | Mutant 16% | Scavenger-Mutant 8% | Subdweller-Mutant Dominant Class ---------------- Mutant | -10/Materials Subdweller-Mutant | -10/Subcaves Subdweller-Mutant | -8/Materials Mutant | -8/Garrison Mutant | -7/Factory Mutant | -7/Lower Caves Mutant | -7/Lower Caves Mutant | -7/Data Miner Mutant | -6/Proximity Caves Scavenger-Mutant | -6/Factory Scavenger-Mutant | -6/Garrison Scavenger-Mutant | -6/Factory Mutant | -6/Lower Caves Mutant | -6/Zion Derelict-Mutant | -5/Proximity Caves Derelict-Mutant | -5/Factory Scavenger-Mutant | -5/Extension Scavenger-Mutant | -5/Cetus Scavenger-Mutant | -5/Archives Scavenger-Mutant | -5/Hub_04(d) Scavenger-Mutant | -4/Factory Mutant | -4/DSF Mutant | -3/Research Sprinter | -2/Research Sprinter | -2/Quarantine Mutant | -1/Access Resources | -11 -10 -10 -8 -8 -7 -7 -7 -7 -6 -6 -6 -6 -6 -6 -5 -5 -5 -5 -5 -5 -4 -4 -3 -2 -2 -1 ----------- Run | Jun Mat Sub Mat Gar Fac Low Low Dat Pro Fac Gar Fac Low Zio Pro Fac Ext Cet Arc Hub Fac DSF Res Res Qua Acc Matter Collected 12371 | 220 178 746 1392 555 373 224 2174 . 468 152 565 1093 110 728 444 12 1335 175 64 205 . 505 501 . 117 35 Remotely 2311 | . . . . . . . 1697 . . . . . . 247 . . 367 . . . . . . . . . Salvage Created 13284 | . 109 742 820 846 405 366 1009 . 330 172 444 1376 155 1653 442 47 1070 973 114 1363 . 307 265 . 138 138 Parts 569 | . 12 36 45 43 23 6 37 . 14 9 20 51 6 103 12 3 29 45 12 41 . 9 8 . 1 4 Haulers Intercepted 11 | . 1 . 3 . 2 . . . . . . 1 . . . . 1 . . 1 . . 1 . 1 . Recyclers Shooed 5 | . . . 1 . . . . . . . . 2 . . . . 1 . . 1 . . . . . . Parts Field Recycled 57 | . . . 50 . . . . . . . . . . . . . 7 . . . . . . . . . Retrieved Matter 509 | . . . 432 . . . . . . . . . . . . . 77 . . . . . . . . . Parts Self-Destructed 57 | . . 15 . . . 5 5 . 21 . . . . 2 9 . . . . . . . . . . . Prevented . | . . . . . . . . . . . . . . . . . . . . . . . . . . . Kills | -11 -10 -10 -8 -8 -7 -7 -7 -7 -6 -6 -6 -6 -6 -6 -5 -5 -5 -5 -5 -5 -4 -4 -3 -2 -2 -1 ------- Run | Jun Mat Sub Mat Gar Fac Low Low Dat Pro Fac Gar Fac Low Zio Pro Fac Ext Cet Arc Hub Fac DSF Res Res Qua Acc Combat Hostiles Destroyed 242 | . 7 24 18 25 10 3 4 . 13 4 11 16 4 11 13 1 26 19 . 22 . 6 3 . . 2 Melee 2 | . . . . . 1 . . . . . . 1 . . . . . . . . . . . . . . Guns 57 | . 2 18 8 16 4 2 . . 1 . . . . . . . . . . . . 4 2 . . . Cannons 88 | . . . 5 1 . . . . . 4 11 13 1 11 8 1 21 7 . 4 . . . . . 1 AOE 83 | . 5 6 5 8 4 1 4 . 12 . . 2 3 . 5 . 5 7 . 14 . 2 . . . . Classes Destroyed 24 | . 4 2 4 4 . . 4 . . . 1 1 . 2 1 . . . . . . 1 . . . . Worker 13 | . . . 3 . 1 . . . . . . 2 . . . 1 1 . . 5 . . . . . . Builder 2 | . . . . . . . . . . . . 1 . . . . . . . 1 . . . . . . Tunneler 4 | . . . 1 . . . . . . . . . 1 . . . . . . 2 . . . . . . Hauler 11 | . 1 . 3 . 2 . . . . . . 1 . . . . 1 . . 1 . . 1 . 1 . Recycler 12 | . . . 1 . . . . . . . . 5 . . . . 3 . . 3 . . . . . . Mechanic 1 | . . . . . . . . . . . . . . . . . . . . 1 . . . . . . Drone 2 | . . . . . . . . . . . . . . . 2 . . . . . . . . . . . Watcher 7 | . 1 . . . . . . . . . . 2 . . . . . 2 . 1 . . . . 1 . Swarmer 55 | . 6 7 8 3 4 . . . 10 . 2 2 . . . . 5 8 . . . . . . . . Grunt 89 | . 1 . 9 14 5 2 4 . 2 2 7 6 . . 5 . 12 3 . 14 . . 3 . . . Brawler 5 | . . . . 2 . . . . . . . 1 . . 2 . . . . . . . . . . . Duelist 4 | . . . . 1 . . . . 1 . . . . . . . . . . 2 . . . . . . Sentry 14 | . . . 1 2 . 1 . . . . . 2 . . . 1 3 . . 4 . . . . . . Specialist 4 | . . . . 2 . . . . . 2 . . . . . . . . . . . . . . . . Hunter 12 | . . . . . . . . . . . 1 2 . . . . 4 . . . . 3 . . . 2 Programmer 14 | . . . . 1 1 . . . . . . 3 . . 4 . 1 . . 2 . 2 . . . . Heavy 1 | . . . . . . . . . . . . . . . . . . . . . . 1 . . . . Behemoth 2 | . . . . . . . . . . . 1 . . . . . 1 . . . . . . . . . Cetus Guard 8 | . . . . . . . . . . . . . . . . . . 8 . . . . . . . . Cobbler 2 | . . 2 . . . . . . . . . . . . . . . . . . . . . . . . Subdweller 17 | . . 17 . . . . . . . . . . . . . . . . . . . . . . . . Zionite 56 | . . . . . . . . . . . . . . 56 . . . . . . . . . . . . Decomposer 1 | . . . . . . . 1 . . . . . . . . . . . . . . . . . . . Packrat 4 | . . . . . . 3 1 . . . . . . . . . . . . . . . . . . . Samaritan 3 | . . . . . . . 3 . . . . . . . . . . . . . . . . . . . Tinkerer 6 | . . . . . . . 2 . . . . . . 4 . . . . . . . . . . . . Surgeon 1 | . . . . . . . . . . . . . . 1 . . . . . . . . . . . . Thug 7 | . . . . . . . 1 . . . . . 4 2 . . . . . . . . . . . . Savage 3 | . . . . . . . 2 . . . . . . 1 . . . . . . . . . . . . Butcher 2 | . . . . . . . 1 . . . . . . 1 . . . . . . . . . . . . Guerrilla 1 | . . . . . . . 1 . . . . . . . . . . . . . . . . . . . Marauder 2 | . . . . . . . . . . . . . . 2 . . . . . . . . . . . . Mutant 5 | . . . . . . . 1 . . . . . . 4 . . . . . . . . . . . . Commander 1 | . . . . . . . 1 . . . . . . . . . . . . . . . . . . . Best Kill Streak 10 | . 4 4 4 5 4 2 4 . 4 4 3 4 4 9 3 1 8 5 . 10 . 2 3 . 1 2 Combat Bots Only 7 | . 3 4 4 5 3 2 4 . 4 4 3 4 4 3 3 1 7 4 . 5 . 2 3 . . 2 Max Kills in Single Turn 4 | . 3 2 3 2 3 1 3 . 2 1 1 2 4 2 2 1 2 2 . 3 . 1 1 . 1 1 Gunslinging . | . . . . . . . . . . . . . . . . . . . . . . . . . . . Exploded 3 | . 2 2 3 2 3 1 3 . 2 . . 2 3 . 1 . 2 2 . 2 . 1 . . . . Melee 1 | . . . . . 1 . . . . . . 1 . . . . . . . . . . . . . . Uniques/NPCs Destroyed 1 | . . . . . . . . . . . . . . 1 . . . . . . . . . . . . Imprinter (-6/Zion) Combat | -11 -10 -10 -8 -8 -7 -7 -7 -7 -6 -6 -6 -6 -6 -6 -5 -5 -5 -5 -5 -5 -4 -4 -3 -2 -2 -1 -------- Run | Jun Mat Sub Mat Gar Fac Low Low Dat Pro Fac Gar Fac Low Zio Pro Fac Ext Cet Arc Hub Fac DSF Res Res Qua Acc Damage Taken 19125 | . 90 1214 589 1120 438 52 110 . 392 146 718 1649 43 2154 847 263 1549 1141 1214 1807 . 2296 266 223 95 709 Core 1398 | . 20 145 46 42 55 5 . . 26 27 61 56 . 173 21 . 122 83 40 67 . 174 46 47 . 142 Absorbed by Shields 612 | . . . . . 91 22 44 . 145 52 235 . . . . . . . . . . . . 23 . . Redirected to Shielding 3 | . 3 . . . . . . . . . . . . . . . . . . . . . . . . . Ignored by Resistances 779 | . . . 24 39 . . . . . . . 4 . . 10 . 312 287 . 103 . . . . . . Regen/Repaired (Parts) 1024 | . . . . . . . . . . . . 800 . 224 . . . . . . . . . . . . Core Remaining (%) 80 | 100 . 34 . 84 . . . . 87 . . . . . 60 . . . . 68 . 84 96 . 96 91 Volleys Fired 1116 | . 13 104 65 77 33 18 86 . 31 18 72 103 18 196 30 18 62 35 45 36 . 31 6 8 1 10 Largest 2 | . 2 2 2 2 2 2 2 . 2 2 1 2 2 2 2 2 2 2 1 2 . 2 2 1 1 1 Hottest 162 | . 70 90 135 135 88 88 88 . 88 133 60 60 60 87 105 105 162 162 81 150 . 70 90 120 7 120 Shots Fired 1732 | . 23 162 114 132 53 35 127 . 45 25 72 113 20 364 52 26 120 64 45 53 . 57 11 8 1 10 Gun 652 | . 20 148 76 111 43 34 125 . 34 . . . . . . . . . . . . 51 10 . . . Cannon 944 | . . . 34 6 1 . . . . 25 65 105 18 350 46 26 117 61 36 39 . . 1 8 . 6 Launcher 57 | . 3 8 4 15 1 1 2 . 11 . . . 2 10 . . . . . . . . . . . . Special 79 | . . 6 . . 8 . . . . . 7 8 . 4 6 . 3 3 9 14 . 6 . . 1 4 Kinetic 700 | . 10 94 63 51 20 17 41 . 14 18 65 77 . 12 46 10 101 . . . . 51 10 . . . Thermal 789 | . 10 60 51 66 24 17 84 . 20 7 . 28 18 338 . 16 . . 35 . . . 1 8 . 6 Explosive 93 | . 3 8 . 15 1 1 2 . 11 . . . 2 14 6 . 3 3 4 14 . 6 . . . . Electromagnetic 117 | . . . . . . . . . . . . . . . . . 16 61 1 39 . . . . . . Robot Hit Streak 25 | . 7 17 9 10 10 5 17 . 4 7 9 8 9 25 5 8 11 17 5 11 . 8 7 . 8 5 Robot Miss Streak 7 | . 2 5 2 3 3 3 3 . 2 3 3 3 . 4 5 3 7 3 2 1 . 3 1 . . 1 Penetration Max 1 | . . . . . . . . . . . . 1 . . 1 . . . . . . 1 . . . . Secondary Targets 6 | . . 1 2 . . . . . 1 . . . . . . . . . . . . 1 1 . . . Max Gunslinging Chain 1 | . . 1 1 . . . . . 1 . . . . . . . . . . . . 1 1 . . . Shots Hit Robots 1124 | . 14 102 72 82 38 20 97 1 24 17 47 72 3 230 27 10 100 43 13 44 . 40 11 . 9 8 Core Hits 683 | . 11 45 38 42 14 13 48 . 27 9 15 29 7 100 20 5 145 31 5 48 . 23 6 . . 2 Critical Kills 11 | . . . . 2 . . . . . . . . . 1 7 . . . . . . . . . . 1 Critical Parts Destroyed 20 | . . 1 1 1 1 . 1 . 1 . . 1 . 3 9 . . . . . . . . . 1 . Critical Strikes 70 | . . 3 1 4 2 . 5 . 1 1 6 10 . 5 18 . 2 2 . 7 . 1 . . 1 1 Burn 6 | . . . . 1 1 . 4 . . . . . . . . . . . . . . . . . . . Meltdown 1 | . . . . . . . . . . . . . . . . . . . . . . . . . . 1 Destroy 29 | . . 3 1 3 . . 1 . 1 . . . . 4 16 . . . . . . . . . . . Blast 16 | . . . . . . . . . . 1 6 9 . . . . . . . . . . . . . . Corrupt 3 | . . . . . . . . . . . . . . . . . . 1 . 2 . . . . . . Smash 3 | . . . . . 1 . . . . . . 1 . . . . . . . . . . . . 1 . Sever 12 | . . . . . . . . . . . . . . 1 2 . 2 1 . 5 . 1 . . . . Melee Attacks 79 | . 1 17 . 4 8 . . 1 1 . . 13 . . . . . . 6 . . . 2 6 13 7 Impact 63 | . 1 17 . . 8 . . . . . . 11 . . . . . . . . . . . 6 13 7 Slashing 8 | . . . . . . . . . . . . . . . . . . . 6 . . . 2 . . . Piercing . | . . . . . . . . . . . . . . . . . . . . . . . . . . . Sneak Attacks 11 | . . . . 4 2 . . 1 1 . . 1 . . . . . . . . . . 1 . 1 . Combat Hostiles 1 | . . . . . 1 . . . . . . . . . . . . . . . . . . . . . Follow-up Attacks . | . . . . . . . . . . . . . . . . . . . . . . . . . . . Damage Inflicted 46205 | . 438 2297 1890 3056 1409 541 2414 . 1701 573 2281 3463 546 6895 1658 278 3546 3016 1061 5419 . 2655 356 . 502 210 Guns 8783 | . 140 1717 892 1460 470 428 2024 . 471 . . . . . . . . . . . . 948 233 . . . Cannons 18141 | . . . 498 105 . . . . . 572 2281 2952 53 5371 756 257 2646 1348 54 1038 . . . . . 210 Explosions 16204 | . 296 557 476 1491 558 113 390 . 1230 . . 138 493 1415 777 . 794 1540 471 3930 . 1535 . . . . Melee 1723 | . . . . . 381 . . . . . . 328 . . . . . . 389 . . . 123 . 502 . Ramming 131 | . 2 . 24 . . . . . . 1 . 45 . . . 21 . . . 38 . . . . . . Kinetic 14531 | . 51 1275 1128 763 240 206 824 . 166 434 2281 2500 . 145 756 150 2431 . . . . 948 233 . . . Thermal 11708 | . 89 465 738 802 619 222 1200 . 305 138 . 590 53 5226 . 107 . 812 54 78 . . . . . 210 Explosive 14311 | . 296 557 . 1491 169 113 390 . 1230 . . . 493 1415 777 . 794 728 471 3852 . 1535 . . . . Electromagnetic 2601 | . . . . . . . . . . . . . . . . . 215 1348 . 1038 . . . . . . Impact 1211 | . . . . . 381 . . . . . . 328 . . . . . . . . . . . . 502 . Slashing 1712 | . . . . . . . . . . . . . . 109 125 . 106 128 536 413 . 172 123 . . . Piercing . | . . . . . . . . . . . . . . . . . . . . . . . . . . . Highest Corruption 20 | . . . . . . . . . . . . 3 3 7 20 . . 6 6 3 . 7 4 . . . Average Corruption 6 | . . . . . . . . . . . . 3 3 6 12 . . 5 5 2 . 4 2 . . . Corruption Purged 10 | . . . . . . . . . . . . . . . . . . . 6 . . . 4 . . . Corruption Blocked . | . . . . . . . . . . . . . . . . . . . . . . . . . . . Effects 135 | . . . . . . . . . . . . 12 17 45 36 . . 12 5 2 . 3 3 . . . Message Errors 30 | . . . . . . . . . . . . 2 6 9 7 . . 3 2 1 . . . . . . Matter Fused 31 | . . . . . . . . . . . . 3 3 9 7 . . 6 1 . . 1 1 . . . Heat Flow Errors 25 | . . . . . . . . . . . . 3 3 10 9 . . . . . . . . . . . Energy Discharges 13 | . . . . . . . . . . . . . 3 3 5 . . 1 . . . 1 . . . . Parts Rejected 2 | . . . . . . . . . . . . . . 1 1 . . . . . . . . . . . Data Loss (minor) 18 | . . . . . . . . . . . . 2 1 8 4 . . 1 . 1 . . 1 . . . Data Loss (major) 4 | . . . . . . . . . . . . 1 . 1 . . . . . . . 1 1 . . . Misfires 2 | . . . . . . . . . . . . . 1 . . . . . 1 . . . . . . . Alerts 1 | . . . . . . . . . . . . . . 1 . . . . . . . . . . . . Misdirections 1 | . . . . . . . . . . . . . . . 1 . . . . . . . . . . . Weapon Failures 8 | . . . . . . . . . . . . 1 . 3 2 . . 1 1 . . . . . . . Overload Shots 1 | . . . . . . . . . . . . . . . . . . . . . . . 1 . . . Overflow Damage 1451 | . 20 . . 23 196 . 6 . 92 34 54 274 22 170 2 9 22 36 152 204 . 1 . . 126 8 Projectiles 477 | . . . . . . . . . . 34 54 183 4 94 2 9 8 36 6 38 . 1 . . . 8 Explosions 499 | . 20 . . 23 55 . 6 . 92 . . . 18 76 . . 14 . 29 166 . . . . . . Melee 475 | . . . . . 141 . . . . . . 91 . . . . . . 117 . . . . . 126 . Knockbacks 60 | . . . . . . . . . . 1 6 19 . 1 3 . 30 . . . . . . . . . Impact 5 | . . . . . . . . . . . . 5 . . . . . . . . . . . . . . Kinetic 53 | . . . . . . . . . . 1 6 12 . 1 3 . 30 . . . . . . . . . Secondary 2 | . . . . . . . . . . . . 2 . . . . . . . . . . . . . . Self-Inflicted Damage 462 | . 4 . 18 226 6 . 107 . 39 . . . 22 . . . . . . 40 . . . . . . Shots 15 | . 1 . 1 7 1 . 2 . 1 . . . 1 . . . . . . 1 . . . . . . Rammed 11 | . 4 . . . . . . . . . . . . . . . . . . 7 . . . . . . Targets Rammed 19 | . 4 . 3 . . . . . . 1 . 3 . . . 1 . . . 7 . . . . . . Kicked 8 | . . . 3 . . . . . . 1 . 3 . . . 1 . . . . . . . . . . Crushed . | . . . . . . . . . . . . . . . . . . . . . . . . . . . Highest Temperature 332 | . 76 1 210 7 14 . 288 . . 71 . 231 230 260 239 14 189 332 10 210 . . 34 153 . 36 Average Temperature 86 | . 33 1 58 6 7 . 113 . . 29 . 88 73 106 92 9 42 162 7 55 . . 14 67 . 19 Received Heat Transfer 3111 | . 6 162 243 468 111 . 18 . 82 56 153 327 9 306 153 72 273 150 18 336 . . 111 39 . 18 Effects 6 | . . . . . . . . . . . . 1 . . 1 . . 4 . . . . . . . . Energy Bleed 4 | . . . . . . . . . . . . 1 . . 1 . . 2 . . . . . . . . Interference 2 | . . . . . . . . . . . . . . . . . . 2 . . . . . . . . Siege Activations . | . . . . . . . . . . . . . . . . . . . . . . . . . . . Robots Corrupted 10 | . . . . . . . . . . . . . . . . . . 5 . 5 . . . . . . Combat Hostiles 9 | . . . . . . . . . . . . . . . . . . 5 . 4 . . . . . . Parts Fried 20 | . . . . . 2 . . . . . . . . . . . 1 7 . 8 . . . . 2 . Impact Corruptions 11 | . . . . . 2 . . . . . . 5 . . . . . . . . . . . . 4 . Robots Melted 1 | . . . . . . . . . . . . . . . . . . . . . . . . . . 1 Combat Hostiles 1 | . . . . . . . . . . . . . . . . . . . . . . . . . . 1 Parts Melted 29 | . . . . 2 . . 4 . . . . 1 . 17 . . . 2 . . . . 2 . . 1 Heat Transferred 17100 | . 259 894 1147 1443 718 407 2664 . 536 185 . 729 74 7037 . 148 . 550 74 50 . . . . . 185 Parts Sabotaged . | . . . . . . . . . . . . . . . . . . . . . . . . . . . Parts Stolen . | . . . . . . . . . . . . . . . . . . . . . . . . . . . Parts Stripped . | . . . . . . . . . . . . . . . . . . . . . . . . . . . Power Chain Reactions 4 | . . . . . . . . . . . . . . . . . . 3 . 1 . . . . . . Missiles Intercepted . | . . . . . . . . . . . . . . . . . . . . . . . . . . . Alert | -11 -10 -10 -8 -8 -7 -7 -7 -7 -6 -6 -6 -6 -6 -6 -5 -5 -5 -5 -5 -5 -4 -4 -3 -2 -2 -1 ------- Run | Jun Mat Sub Mat Gar Fac Low Low Dat Pro Fac Gar Fac Low Zio Pro Fac Ext Cet Arc Hub Fac DSF Res Res Qua Acc Peak Influence 1052 | . 230 . 340 1052 768 . . . . 404 810 949 . . . 156 378 607 356 845 394 435 289 284 416 663 Initial 552 | . . . . 60 552 . . . . 51 168 424 . . . 6 76 126 242 35 389 275 238 62 168 249 Average 352 | . 50 . 118 485 640 . . . . 191 625 574 . . . 59 233 345 258 536 390 358 204 117 240 388 Maximum Alert Level 3 | . 1 . 1 3 3 . . . . 2 3 3 . . . . 1 2 1 3 1 2 1 1 2 2 Low Security (%) 32 | 100 92 . 82 11 . . . . . 47 2 . . . . 100 30 11 16 8 . . 35 85 47 . Level 1 31 | . 7 . 17 24 . . . . . 34 12 30 . . . . 69 39 83 24 100 68 64 14 45 60 Level 2 22 | . . . . 42 57 . . . . 17 41 38 . . . . . 49 . 34 . 31 . . 6 39 Level 3 14 | . . . . 22 42 . . . . . 42 31 . . . . . . . 32 . . . . . . Level 4 . | . . . . . . . . . . . . . . . . . . . . . . . . . . . Level 5 . | . . . . . . . . . . . . . . . . . . . . . . . . . . . High Security . | . . . . . . . . . . . . . . . . . . . . . . . . . . . Max Security . | . . . . . . . . . . . . . . . . . . . . . . . . . . . Squads Dispatched 41 | . 2 . 5 . 5 . . . . 6 . 6 . . . . 1 . . 5 . 1 8 . 1 1 Investigation 14 | . 2 . 3 . 2 . . . . 2 . 2 . . . . . . . 2 . . . . . 1 Extermination 6 | . . . . . 1 . . . . 1 . 2 . . . . . . . 2 . . . . . . Reinforcement 13 | . . . 2 . . . . . . 2 . . . . . . 1 . . . . 1 6 . 1 . Assault 4 | . . . . . 2 . . . . . . 1 . . . . . . . 1 . . . . . . Garrison 4 | . . . . . . . . . . 1 . 1 . . . . . . . . . . 2 . . . Intercept . | . . . . . . . . . . . . . . . . . . . . . . . . . . . Searches Triggered . | . . . . . . . . . . . . . . . . . . . . . . . . . . . Data Miner Redirects 6 | . . . . . . . . . . 1 . 3 . . . . . . . 2 . . . . . . Construction Impeded . | . . . . . . . . . . . . . . . . . . . . . . . . . . . Haulers Reinforced 3 | . . . . . . . . . . . . . . . . . . . . . . . 3 . . . Active Scanning Responses . | . . . . . . . . . . . . . . . . . . . . . . . . . . . Cargo Convoy Interrupts . | . . . . . . . . . . . . . . . . . . . . . . . . . . . Stealth | -11 -10 -10 -8 -8 -7 -7 -7 -7 -6 -6 -6 -6 -6 -6 -5 -5 -5 -5 -5 -5 -4 -4 -3 -2 -2 -1 --------- Run | Jun Mat Sub Mat Gar Fac Low Low Dat Pro Fac Gar Fac Low Zio Pro Fac Ext Cet Arc Hub Fac DSF Res Res Qua Acc Distress Signals 29 | . 1 . 4 . 2 1 . . . 1 . . . . . 1 4 2 . . . . 8 1 . 4 Communications Jammed . | . . . . . . . . . . . . . . . . . . . . . . . . . . . Distress Signals . | . . . . . . . . . . . . . . . . . . . . . . . . . . . Times Spotted 459 | . 9 27 30 30 18 2 3 . 14 13 22 26 4 78 13 1 31 22 6 38 . 12 7 11 13 29 Peak Tracking Total 18 | . 4 3 4 5 4 1 3 . 4 3 4 4 4 5 4 1 5 5 6 7 . 3 4 11 9 18 Tactical Retreats 34 | . . 1 . 3 . . . . . . 5 . . 5 . . 1 . . 3 . 2 1 3 3 7 Traps | -11 -10 -10 -8 -8 -7 -7 -7 -7 -6 -6 -6 -6 -6 -6 -5 -5 -5 -5 -5 -5 -4 -4 -3 -2 -2 -1 ------- Run | Jun Mat Sub Mat Gar Fac Low Low Dat Pro Fac Gar Fac Low Zio Pro Fac Ext Cet Arc Hub Fac DSF Res Res Qua Acc Traps Triggered 14 | . 1 2 . 2 . . . . . . 5 1 . . . . 1 . . . . 1 . 1 . . Indirectly . | . . . . . . . . . . . . . . . . . . . . . . . . . . . Trap Hack Attempts 6 | . . 6 . . . . . . . . . . . . . . . . . . . . . . . . Triggered . | . . . . . . . . . . . . . . . . . . . . . . . . . . . Disarmed 1 | . . 1 . . . . . . . . . . . . . . . . . . . . . . . . Reprogrammed 7 | . . 1 6 . . . . . . . . . . . . . . . . . . . . . . . Reused 3 | . . 1 2 . . . . . . . . . . . . . . . . . . . . . . . Traps Extracted . | . . . . . . . . . . . . . . . . . . . . . . . . . . . Installed 3 | . . 2 1 . . . . . . . . . . . . . . . . . . . . . . . Triggered 2 | . . . 2 . . . . . . . . . . . . . . . . . . . . . . . Most Traps Carried 1 | . . . 1 . . . . . . . . . . . . . . . . . . . . . . . Machines | -11 -10 -10 -8 -8 -7 -7 -7 -7 -6 -6 -6 -6 -6 -6 -5 -5 -5 -5 -5 -5 -4 -4 -3 -2 -2 -1 ---------- Run | Jun Mat Sub Mat Gar Fac Low Low Dat Pro Fac Gar Fac Low Zio Pro Fac Ext Cet Arc Hub Fac DSF Res Res Qua Acc Machines Disabled 33 | . 2 1 1 1 3 . . . . 1 3 6 . 2 . . 1 . 3 7 . . . . 2 . Max in Single Turn 2 | . 2 1 1 1 1 . . . . . 1 2 . 1 . . 1 . 1 1 . . . . 1 . Garrison Access 6 | . . . . . . . . . . . . 2 . . . . . . . . . . 1 1 . 2 Garrison Relay 4 | . . . . 1 . . . . . . 3 . . . . . . . . . . . . . . . Energy Cycler 1 | . . . . . . . . . . . . . . . . . 1 . . . . . . . . . Machines Repaired . | . . . . . . . . . . . . . . . . . . . . . . . . . . . Machines Sabotaged . | . . . . . . . . . . . . . . . . . . . . . . . . . . . Overloaded Fab Kills . | . . . . . . . . . . . . . . . . . . . . . . . . . . . Hacking | -11 -10 -10 -8 -8 -7 -7 -7 -7 -6 -6 -6 -6 -6 -6 -5 -5 -5 -5 -5 -5 -4 -4 -3 -2 -2 -1 --------- Run | Jun Mat Sub Mat Gar Fac Low Low Dat Pro Fac Gar Fac Low Zio Pro Fac Ext Cet Arc Hub Fac DSF Res Res Qua Acc Machines Accessed 92 | . 3 1 8 4 9 . 4 3 1 7 2 14 1 1 . 5 2 1 1 4 1 . 4 2 6 8 Terminals 51 | . 3 . 5 4 5 . . . 1 3 2 4 . . . 5 1 1 . 4 1 . 2 1 4 5 Fabricators 7 | . . . . . 2 . . . . 1 . 3 . . . . . . . . . . 1 . . . Repair Stations 5 | . . . . . 1 . . . . 1 . 2 . . . . . . . . . . . . . 1 Recycling Units 5 | . . . 1 . . . . . . 1 . 2 . . . . 1 . . . . . . . . . Scanalyzers 5 | . . . 1 . 1 . . . . . . 1 . . . . . . . . . . . . 2 . Garrison Access 8 | . . . 1 . . . . . . 1 . 2 . . . . . . . . . . 1 1 . 2 Total Hacks 260 | . 7 9 28 11 23 . 9 24 2 13 3 29 1 8 . 14 4 1 25 11 1 . 7 3 10 17 Successful 147 | . 1 9 16 2 4 . 9 24 2 7 1 13 1 8 . 7 . . 25 7 1 . 3 1 1 5 Failed 110 | . 5 . 11 9 18 . . . . 6 2 16 . . . 7 4 1 . 4 . . 4 2 9 12 Catastrophic 34 | . 1 . 2 4 6 . . . . 1 1 4 . . . 1 1 1 . . . . 2 1 4 5 Database Lockouts 3 | . 1 . 1 . 1 . . . . . . . . . . . . . . . . . . . . . Manual 81 | . 5 . 20 1 8 . . . . 7 . 14 . . . 3 2 . . 7 . . 4 . 7 3 Terminals 122 | . 7 . 22 11 13 . . . 2 5 3 8 . . . 14 2 1 . 11 1 . 2 2 6 12 Fabricators 18 | . . . . . 6 . . . . 2 . 7 . . . . . . . . . . 3 . . . Repair Stations 11 | . . . . . 3 . . . . 1 . 5 . . . . . . . . . . . . . 2 Recycling Units 11 | . . . 3 . . . . . . 2 . 4 . . . . 2 . . . . . . . . . Scanalyzers 7 | . . . 1 . 1 . . . . . . 1 . . . . . . . . . . . . 4 . Garrison Access 15 | . . . 2 . . . . . . 3 . 4 . . . . . . . . . . 2 1 . 3 Terminal Hacks 104 | . 1 9 8 2 2 . 9 24 2 . 1 1 1 8 . 6 . . 25 3 1 . . . . 1 Record 47 | . . 8 . . . . 6 6 2 . . . . . . . . . 25 . . . . . . . Part Schematic 19 | . . . . . . . . 10 . . . . . 8 . 1 . . . . . . . . . . Robot Schematic 5 | . . . . . . . . 5 . . . . . . . . . . . . . . . . . . Robot Analysis 6 | . 1 . 3 . 1 . . . . . . . . . . 1 . . . . . . . . . . Prototype ID Bank 5 | . . . . . . . . 3 . . . . . . . 2 . . . . . . . . . . Open Door 6 | . . . . 1 . . 3 . . . . . 1 . . . . . . . . . . . . 1 Open DSF 1 | . . . . . . . . . . . . . . . . . . . . . 1 . . . . . Branch Access Points 3 | . . . 1 . 1 . . . . . . . . . . 1 . . . . . . . . . . Emergency Access Points 2 | . . . . 1 . . . . . . 1 . . . . . . . . . . . . . . . Terminal Index 1 | . . . . . . . . . . . . . . . . . . . . 1 . . . . . . Garrison Index 1 | . . . . . . . . . . . . 1 . . . . . . . . . . . . . . Alert Level 1 | . . . 1 . . . . . . . . . . . . . . . . . . . . . . . Locate Traps 2 | . . . . . . . . . . . . . . . . 1 . . . 1 . . . . . . Reprogram Traps 1 | . . . 1 . . . . . . . . . . . . . . . . . . . . . . . Hauler Manifests 1 | . . . 1 . . . . . . . . . . . . . . . . . . . . . . . Registered Components 1 | . . . 1 . . . . . . . . . . . . . . . . . . . . . . . Zone Layout 1 | . . . . . . . . . . . . . . . . . . . . 1 . . . . . . Derelict Proto ID Bank 1 | . . 1 . . . . . . . . . . . . . . . . . . . . . . . . Fabricator Hacks 3 | . . . . . . . . . . 1 . 1 . . . . . . . . . . 1 . . . Network Status 2 | . . . . . . . . . . 1 . 1 . . . . . . . . . . . . . . Build 1 | . . . . . . . . . . . . . . . . . . . . . . . 1 . . . Repair Station Hacks 2 | . . . . . 1 . . . . . . 1 . . . . . . . . . . . . . . Scan Component 2 | . . . . . 1 . . . . . . 1 . . . . . . . . . . . . . . Recycling Unit Hacks 4 | . . . 2 . . . . . . 1 . 1 . . . . . . . . . . . . . . Process 1 | . . . 1 . . . . . . . . . . . . . . . . . . . . . . . Retrieve Matter 1 | . . . 1 . . . . . . . . . . . . . . . . . . . . . . . Retrieve Components 2 | . . . . . . . . . . 1 . 1 . . . . . . . . . . . . . . Scanalyzer 1 | . . . 1 . . . . . . . . . . . . . . . . . . . . . . . Insert Component 1 | . . . 1 . . . . . . . . . . . . . . . . . . . . . . . Garrison Access Hacks 10 | . . . 1 . . . . . . 1 . 2 . . . . . . . . . . 2 1 . 3 Unlock Access 2 | . . . 1 . . . . . . 1 . . . . . . . . . . . . . . . . Seal Access 5 | . . . . . . . . . . . . 1 . . . . . . . . . . 1 1 . 2 Coupler Status 3 | . . . . . . . . . . . . 1 . . . . . . . . . . 1 . . 1 Unauthorized Hacks 23 | . . . 4 . 1 . . . . 4 . 7 . . . 1 . . . 4 . . . . 1 1 Terminals 12 | . . . 2 . . . . . . 2 . 1 . . . 1 . . . 4 . . . . 1 1 Botnet 10 | . . . 2 . . . . . . 2 . 1 . . . 1 . . . 2 . . . . 1 1 Sabotage 2 | . . . . . . . . . . . . . . . . . . . . 2 . . . . . . Fabricators 7 | . . . . . 1 . . . . 1 . 5 . . . . . . . . . . . . . . Report 1 | . . . . . . . . . . . . 1 . . . . . . . . . . . . . . Liberate 2 | . . . . . . . . . . . . 2 . . . . . . . . . . . . . . Fabnet 4 | . . . . . 1 . . . . 1 . 2 . . . . . . . . . . . . . . Repair Stations . | . . . . . . . . . . . . . . . . . . . . . . . . . . . Recycling Units 1 | . . . 1 . . . . . . . . . . . . . . . . . . . . . . . Reject 1 | . . . 1 . . . . . . . . . . . . . . . . . . . . . . . Scanalyzers . | . . . . . . . . . . . . . . . . . . . . . . . . . . . Garrison Access 3 | . . . 1 . . . . . . 1 . 1 . . . . . . . . . . . . . . Reprogram 3 | . . . 1 . . . . . . 1 . 1 . . . . . . . . . . . . . . Data Cores Recovered . | . . . . . . . . . . . . . . . . . . . . . . . . . . . Used . | . . . . . . . . . . . . . . . . . . . . . . . . . . . Hacking Detections 73 | . 3 . 6 4 9 . . . 1 7 2 12 . . . 5 2 1 . 2 1 . 4 1 6 7 Full Trace Events 12 | . 1 . 3 3 2 . . . . 1 . 1 . . . . . . . . . . . . . 1 Feedback Events . | . . . . . . . . . . . . . . . . . . . . . . . . . . . Feedback Blocked . | . . . . . . . . . . . . . . . . . . . . . . . . . . . Robot Schematics Acquired 9 | . . . . . . . . 5 . . . . . 4 . . . . . . . . . . . . Robots Built 2 | . . . . . . . . . . . . . . . . . . . . . . . 2 . . . Authchips 1 | . . . . . . . . . . . . . . . . . . . . . . . 1 . . . Time 62 | . . . . . . . . . . . . . . . . . . . . . . . 62 . . . Total Robot Build Rating 14 | . . . . . . . . . . . . . . . . . . . . . . . 14 . . . Part Schematics Acquired 33 | . . . . . . . . 10 . . . . . 22 . 1 . . . . . . . . . . Parts Built . | . . . . . . . . . . . . . . . . . . . . . . . . . . . Authchips . | . . . . . . . . . . . . . . . . . . . . . . . . . . . Time . | . . . . . . . . . . . . . . . . . . . . . . . . . . . Total Part Build Rating . | . . . . . . . . . . . . . . . . . . . . . . . . . . . Parts Repaired . | . . . . . . . . . . . . . . . . . . . . . . . . . . . Time . | . . . . . . . . . . . . . . . . . . . . . . . . . . . Parts Recycled . | . . . . . . . . . . . . . . . . . . . . . . . . . . . Recycled Matter 378 | . . . 378 . . . . . . . . . . . . . . . . . . . . . . . Retrieved Matter 558 | . . . 558 . . . . . . . . . . . . . . . . . . . . . . . Retrieved Components 12 | . . . . . . . . . . 2 . 10 . . . . . . . . . . . . . . Parts Scanalyzed . | . . . . . . . . . . . . . . . . . . . . . . . . . . . Part Schematics Acquired . | . . . . . . . . . . . . . . . . . . . . . . . . . . . Parts Damaged . | . . . . . . . . . . . . . . . . . . . . . . . . . . . Bothacking | -11 -10 -10 -8 -8 -7 -7 -7 -7 -6 -6 -6 -6 -6 -6 -5 -5 -5 -5 -5 -5 -4 -4 -3 -2 -2 -1 ------------ Run | Jun Mat Sub Mat Gar Fac Low Low Dat Pro Fac Gar Fac Low Zio Pro Fac Ext Cet Arc Hub Fac DSF Res Res Qua Acc Used RIF Installer 2 | . . . . 1 . . . . . . 1 . . . . . . . . . . . . . . . Patrol Navigation 1 | . . . . . . . . . . . 1 . . . . . . . . . . . . . . . Robots Hacked 32 | . . . . . 4 . . 1 1 . 3 7 . . 2 . 2 1 5 2 . 1 . . 1 2 Non-combat 6 | . . . . . . . . . . . . 4 . . . . . . . . . . . . . 2 Combat 26 | . . . . . 4 . . 1 1 . 3 3 . . 2 . 2 1 5 2 . 1 . . 1 . Robot Hacks Applied 22 | . . . . . 4 . . 1 1 . 3 7 . . . . . . 3 . . . . . 1 2 parse_system 5 | . . . . . . . . 1 1 . . . . . . . . . 3 . . . . . . . drop_inventory 2 | . . . . . . . . . . . . 2 . . . . . . . . . . . . . . disable_scanner 1 | . . . . . . . . . . . . . . . . . . . . . . . . . 1 . spike_heat 2 | . . . . . 1 . . . . . . 1 . . . . . . . . . . . . . . amplify_resonance 3 | . . . . . 2 . . . . . . . . . . . . . . . . . . . . 1 reboot_system 1 | . . . . . . . . . . . . 1 . . . . . . . . . . . . . . overwrite_iff 1 | . . . . . . . . . . . 1 . . . . . . . . . . . . . . . formatsys_low 2 | . . . . . . . . . . . . 2 . . . . . . . . . . . . . . formatsys_high 5 | . . . . . 1 . . . . . 2 1 . . . . . . . . . . . . . 1 Relay Couplers Released 32 | . . . . 9 . . . . . . 10 6 . . . . . . . . . . 6 . . 1 Machine Destruction 20 | . . . . 5 . . . . . . 10 2 . . . . . . . . . . 2 . . 1 Programmers 12 | . . . . 4 . . . . . . . 4 . . . . . . . . . . 4 . . . Attached 7 | . . . . . 1 . . . . . 1 2 . . . . . . . . . . 2 . 1 . Fabnet Peak Effective % 10 | . . . . . . . . . 3 3 3 3 3 3 10 10 10 10 10 10 3 3 . . . . Autooverrided 10 | . . . . . . . . . . . . . . . 2 . 2 1 2 2 . 1 . . . . Robots Rewired 9 | . . . . 3 . . . . . . . . . . . . 6 . . . . . . . . . Allies Hacked 4 | . . . . . . . . . . . . . . . 1 . 3 . . . . . . . . . Hacks Repelled . | . . . . . . . . . . . . . . . . . . . . . . . . . . . Allies | -11 -10 -10 -8 -8 -7 -7 -7 -7 -6 -6 -6 -6 -6 -6 -5 -5 -5 -5 -5 -5 -4 -4 -3 -2 -2 -1 -------- Run | Jun Mat Sub Mat Gar Fac Low Low Dat Pro Fac Gar Fac Low Zio Pro Fac Ext Cet Arc Hub Fac DSF Res Res Qua Acc Total Allies 40 | . . . 2 3 1 . 1 . 1 2 5 4 . . 2 . 10 1 2 2 . 1 2 . . 1 Largest Group 4 | . . . 2 3 1 . 1 1 2 3 4 2 1 . 1 . 3 3 2 2 . 1 2 . . 1 Highest-Rated Group 293 | . . . 32 76 12 . 99 99 195 147 293 64 10 . 49 . 98 87 58 58 . 54 136 . . 26 Highest-Rated Ally 99 | . . . 16 31 12 . 99 99 99 94 95 32 10 . 49 . 49 31 29 29 . 54 68 . . 26 Total Orders 20 | . . . . . . . . . . . . 18 1 . . . . . . . . . . . . 1 STAY 12 | . . . . . . . . . . . . 10 1 . . . . . . . . . . . . 1 FOLLOW 5 | . . . . . . . . . . . . 5 . . . . . . . . . . . . . . AID 3 | . . . . . . . . . . . . 3 . . . . . . . . . . . . . . Ally Attacks 253 | . . . 14 16 1 . . . 38 15 71 26 . . 1 . 29 23 6 5 . 3 5 . . . Total Damage 8575 | . . . 119 308 17 . . . 1748 1240 2776 640 . . . . 706 382 99 99 . 18 423 . . . Kills 41 | . . . 1 2 . . . . 10 9 8 5 . . . . 2 1 2 . . . 1 . . . Allies Corrupted 1 | . . . . . . . . . . . . . . . 1 . . . . . . . . . . . Allies Melted 1 | . . . . . . . . . . . . . . . . . . . . 1 . . . . . . Intel | -11 -10 -10 -8 -8 -7 -7 -7 -7 -6 -6 -6 -6 -6 -6 -5 -5 -5 -5 -5 -5 -4 -4 -3 -2 -2 -1 ------- Run | Jun Mat Sub Mat Gar Fac Low Low Dat Pro Fac Gar Fac Low Zio Pro Fac Ext Cet Arc Hub Fac DSF Res Res Qua Acc Robot Analysis Total 6 | . 1 . 3 . 1 . . . . . . . . . . 1 . . . . . . . . . . Derelict Logs Recovered 15 | . . 1 . . . 2 2 . 3 . . . 2 2 3 . . . . . . . . . . . Drone Launches 3 | . . . . . . . . . . . . . . . . . . . . . . . . . . 3 Drone Recoveries 2 | . . . . . . . . . . . . . . . . . . . . . . . . . . 2 Exploration | -11 -10 -10 -8 -8 -7 -7 -7 -7 -6 -6 -6 -6 -6 -6 -5 -5 -5 -5 -5 -5 -4 -4 -3 -2 -2 -1 ------------- Run | Jun Mat Sub Mat Gar Fac Low Low Dat Pro Fac Gar Fac Low Zio Pro Fac Ext Cet Arc Hub Fac DSF Res Res Qua Acc Turns Passed 43809 | 6 641 4181 2477 1542 820 1383 4578 121 1896 507 1191 1975 826 16118 848 330 1444 393 479 552 15 287 623 150 188 238 Spaces Moved 18638 | 2 358 2066 743 801 495 988 3025 89 1364 316 686 1166 619 2033 516 210 809 163 178 242 10 106 480 238 416 519 Core 1086 | . . . . . . . . . . . . . . 1086 . . . . . . . . . . . . Treads 3251 | 1 358 2018 . . . . . . . . . . . . . . . 108 178 242 10 106 230 . . . Legs 12878 | 1 . 48 743 801 495 988 3025 89 1364 316 686 1166 619 947 516 210 809 55 . . . . . . . . Wheels . | . . . . . . . . . . . . . . . . . . . . . . . . . . . Hover . | . . . . . . . . . . . . . . . . . . . . . . . . . . . Flight 1423 | . . . . . . . . . . . . . . . . . . . . . . . 250 238 416 519 Fastest Speed 31 | 120 160 130 123 130 126 130 130 130 130 130 125 120 126 126 127 128 120 120 160 160 160 145 31 32 32 32 Average Speed 192 | 140 160 159 137 130 129 130 130 130 130 130 128 121 126 726 130 128 131 153 160 160 160 148 104 34 32 34 Slowest Speed 1250 | 160 160 160 200 130 130 130 130 130 130 130 130 126 126 1250 197 128 270 260 160 160 160 160 225 115 32 39 Overloaded Moves . | . . . . . . . . . . . . . . . . . . . . . . . . . . . Propulsion Burnouts . | . . . . . . . . . . . . . . . . . . . . . . . . . . . Robots Hopped 37 | . . . . . . . . . . . . . . . . . . . . . . . 2 6 9 20 Cave-ins Triggered . | . . . . . . . . . . . . . . . . . . . . . . . . . . . Exploration Rate (%) 51 | 1 55 80 33 85 11 93 98 74 98 10 60 33 61 78 57 7 84 56 98 34 1 91 15 11 46 22 Regions Visited 26 Branch Regions 13 Pre-discovered Areas 3 | . . . . . . . 1 1 . . . . . . 1 . . . . . . . . . . . Known Exits Taken 16 | . . . 1 . 1 . . . . 1 . 1 1 1 1 1 1 1 1 1 1 . 1 1 1 . Unknown Exits Taken 7 | 1 1 1 . . . 1 1 1 1 . . . . . . . . . . . . . . . . . Scrap Searched 41 | . . 25 . . . 2 5 . 1 . . . 1 5 2 . . . . . . . . . . . Spaces Dug 139 | . 9 1 2 . 1 . 17 . 45 1 1 5 17 . . 4 . . 16 . . . . 14 3 3 Terrain Destroyed 944 | . 52 33 62 88 22 13 33 . 137 4 15 59 27 28 80 7 14 94 27 98 . 30 . 14 3 4 Melee 17 | . 1 1 . . 1 . . . . . . . . . . . . . 2 . . . . 6 3 3 Projectile 132 | . . 1 15 1 1 . 1 . 2 4 15 32 6 4 15 7 . . 14 1 . 4 . 8 . 1 AOE 795 | . 51 31 47 87 20 13 32 . 135 . . 27 21 24 65 . 14 94 11 97 . 26 . . . . Terrain Rammed . | . . . . . . . . . . . . . . . . . . . . . . . . . . . Walls Destroyed . | . . . . . . . . . . . . . . . . . . . . . . . . . . . Machines Disabled . | . . . . . . . . . . . . . . . . . . . . . . . . . . . Actions | -11 -10 -10 -8 -8 -7 -7 -7 -7 -6 -6 -6 -6 -6 -6 -5 -5 -5 -5 -5 -5 -4 -4 -3 -2 -2 -1 --------- Run | Jun Mat Sub Mat Gar Fac Low Low Dat Pro Fac Gar Fac Low Zio Pro Fac Ext Cet Arc Hub Fac DSF Res Res Qua Acc Total 24530 | 5 399 2761 2087 1165 607 1047 3560 94 1435 387 894 1562 644 3003 638 242 1066 241 319 345 9 174 589 282 439 536 Wait 3738 | . 2 487 1182 240 28 31 351 4 22 39 92 176 2 696 69 3 99 13 76 47 . 9 45 9 5 11 Move 18540 | 1 357 2065 742 800 494 987 3024 88 1363 315 685 1165 618 2032 515 209 808 162 177 241 9 105 475 225 398 480 Hop 34 | . . . . . . . . . . . . . . . . . . . . . . . 2 6 8 18 Pick Up 180 | . 12 17 27 7 5 1 38 . 1 3 6 16 . 15 5 . 5 3 . . . 5 9 2 3 . Fast Attach 157 | . 2 7 15 2 4 . 7 . 1 3 3 22 1 12 4 2 20 10 2 5 . 12 13 3 3 4 Attach 73 | . . 3 8 4 1 . . . . 2 4 15 . 7 3 2 2 . 4 2 . 3 8 3 2 . Detach 51 | . 1 2 4 . . . 3 . . . 4 9 . 7 1 2 3 1 . 1 . 2 5 3 3 . Swap 187 | 2 5 23 14 14 22 9 7 1 14 . 1 6 4 21 5 5 7 4 7 6 . 4 4 1 . 1 Drop 260 | 2 2 28 26 7 12 1 44 . 2 6 6 33 1 17 6 . 16 13 2 . . 3 20 5 3 5 Fire 1116 | . 13 104 65 77 33 18 86 . 31 18 72 103 18 196 30 18 62 35 45 36 . 31 6 8 1 10 Melee 79 | . 1 17 . 4 8 . . 1 1 . . 13 . . . . . . 6 . . . 2 6 13 7 Ram . | . . . . . . . . . . . . . . . . . . . . . . . . . . . Kick 8 | . . . 3 . . . . . . 1 . 3 . . . 1 . . . . . . . . . . Crush 11 | . 4 . . . . . . . . . . . . . . . . . . 7 . . . . . . Escape Stasis 41 | . . . . 10 . . . . . . 20 . . . . . . . . . . . . 11 . . Rewire 46 | . . . . . . . . . . . 1 1 . . . . 44 . . . . . . . . . Trap 9 | . . 8 1 . . . . . . . . . . . . . . . . . . . . . . . Miscellaneous . | . . . . . . . . . . . . . . . . . . . . . . . . . . . Route ------- -11/Junkyard -10/Materials (discovered 3 exits: [*Mat] / [*Min] / *Sub) -10/Subcaves -8/Materials (discovered 3 exits: Fac x2 / Gar) -8/Garrison (discovered 3 exits: *Fac x3) -7/Factory (discovered 2 exits: *Low x2) -7/Lower Caves -7/Lower Caves (discovered 2 exits: *Fac / *Dat) -7/Data Miner -6/Proximity Caves -6/Factory (discovered 3 exits: Fac / Low / Gar) -6/Garrison (discovered 2 exits: *Fac x2) -6/Factory (discovered 3 exits: *Fac / *Low x2) -6/Lower Caves -6/Zion (discovered 2 exits: Dee / *Pro) -5/Proximity Caves -5/Factory (discovered 4 exits: Upp x2 / *Ext x2) -5/Extension (discovered 3 exits: *Fac x2 / *Cet) -5/Cetus (discovered 2 exits: *Fac / *Arc) -5/Archives (discovered 3 exits: *Fac / *Hub x2) -5/Hub_04(d) (discovered 2 exits: *Fac x2) -4/Factory -4/DSF -3/Research (discovered 2 exits: *Res / *Tes) -2/Research -2/Quarantine -1/Access To Epsilon Eridani History --------- Turn | Location | Event 1 | -11/Junkyard | Discovered new exit (range 1) 7 | -11/Junkyard | Entered Materials 201 | -10/Materials | Discovered new exit (range 15) 306 | -10/Materials | Build established: Mutant 546 | -10/Materials | Discovered new exit (range 8) 583 | -10/Materials | Central database locked down 643 | -10/Materials | Discovered new exit (range 3) 648 | -10/Materials | Entered Subcaves 743 | -10/Subcaves | Disturbed a concealed Subdweller 1277 | -10/Subcaves | Shifting Twisted Machinery released Sub. Machine Gun 1287 | -10/Subcaves | Shifting Twisted Machinery released Sub. Machine Gun 1303 | -10/Subcaves | A swath of the cavern ceiling suddenly collapsed 2275 | -10/Subcaves | Visited 4L-MR0's lab 2295 | -10/Subcaves | Found Cargo Legs 2478 | -10/Subcaves | A swath of the cavern ceiling suddenly collapsed 2600 | -10/Subcaves | Learned location of 2 exits from Materials 2723 | -10/Subcaves | Build established: Subdweller-Mutant 2764 | -10/Subcaves | Shifting Twisted Machinery released Sub. Monowheel 2787 | -10/Subcaves | Shifting Twisted Machinery released Battle Cannon 3944 | -10/Subcaves | Ambushed by angry Subdweller bent on revenge 3984 | -10/Subcaves | Core integrity fell below 50% 4580 | -10/Subcaves | Discovered new exit (range 16) 4747 | -10/Subcaves | Attached Cargo Legs, gained temporary slots: Utility x2 4748 | -10/Subcaves | Disturbed a concealed Subdweller 4751 | -10/Subcaves | Disturbed a concealed Subdweller 4829 | -10/Subcaves | Entered Materials 4829 | -8/Materials | Evolved 4 slots: Propulsion x2, Utility x2 4830 | -8/Materials | Identified exit to Factory 6540 | -8/Materials | Build established: Mutant 7263 | -8/Materials | Identified exit to Garrison 7288 | -8/Materials | Central database locked down 7306 | -8/Materials | Entered Garrison 7306 | -8/Garrison | Accompanied by 2 allies 7352 | -8/Garrison | Triggered checkpoint 7461 | -8/Garrison | Garrison Relay disabled 7732 | -8/Garrison | Triggered checkpoint 7734 | -8/Garrison | Triggered checkpoint 7822 | -8/Garrison | Triggered checkpoint 7838 | -8/Garrison | Discovered exit to Factory (range 10) 8096 | -8/Garrison | Discovered exit to Factory (range 11) 8132 | -8/Garrison | Triggered checkpoint 8526 | -8/Garrison | Triggered checkpoint 8562 | -8/Garrison | Triggered checkpoint 8614 | -8/Garrison | Installed Relay Interface Framework 8713 | -8/Garrison | Discovered exit to Factory (range 12) 8725 | -8/Garrison | Build established: Scavenger-Mutant 8848 | -8/Garrison | Entered Factory 8848 | -7/Factory | Evolved 2 slots: Power x1, Propulsion x1 8910 | -7/Factory | Identified exit to Lower Caves 9342 | -7/Factory | Central database locked down 9513 | -7/Factory | Build established: Mutant 9648 | -7/Factory | First assault squad dispatched 9668 | -7/Factory | Entered Lower Caves 10383 | -7/Lower Caves | Discovered new exit (range 8) 10539 | -7/Lower Caves | Learned Factory machine intel 10542 | -7/Lower Caves | Learned Factory stockpile data 10623 | -7/Lower Caves | Attracted the attention of an 0b10 checkpoint 11051 | -7/Lower Caves | Entered another Lower Caves area 11051 | -7/Lower Caves | Discovered new exit (range 12) 11362 | -7/Lower Caves | Learned 8 Factory zone layouts 12036 | -7/Lower Caves | Discovered new exit (range 4) 12341 | -7/Lower Caves | Learned location of 1 exit from Factory 12341 | -7/Lower Caves | Learned Armory trap positions 12341 | -7/Lower Caves | Learned Factory stockpile data 12341 | -7/Lower Caves | Learned Armory security intel 12341 | -7/Lower Caves | Learned Factory garrison access intel 12444 | -7/Lower Caves | Destroyed NW-H6D(g) 12791 | -7/Lower Caves | Found Prototype Device 12791 | -7/Lower Caves | Identified Heart of Steel 15075 | -7/Lower Caves | Heart of Steel transformed into Warbot 15629 | -7/Lower Caves | Entered Data Miner 15629 | -7/Data Miner | Accompanied by 1 ally (Warbot) 15629 | -7/Data Miner | Discovered new exit (range 6) 15654 | -7/Data Miner | Met Data Miner 15696 | -7/Data Miner | Learned location of Section 7 (-2) 15696 | -7/Data Miner | Acquired the access code to Warlord's prototype stash 15714 | -7/Data Miner | Received God Mode back door access code from Data Miner 15750 | -7/Data Miner | Entered Proximity Caves 15750 | -6/Proximity Caves | Accompanied by 1 ally (Warbot) 15752 | -6/Proximity Caves | Attracted the attention of an 0b10 checkpoint 15844 | -6/Proximity Caves | Escorted by Enhanced Grunt 16004 | -6/Proximity Caves | Learned Factory non-interactive machine intel 16316 | -6/Proximity Caves | Discovered new exit (range 15) 16377 | -6/Proximity Caves | Spotted B-75 Beast 16402 | -6/Proximity Caves | Allies destroyed B-75 Beast 16669 | -6/Proximity Caves | Learned location of 1 exit from Factory 16895 | -6/Proximity Caves | Learned 8 Factory zone layouts 17646 | -6/Proximity Caves | Entered Factory 17646 | -6/Factory | Accompanied by 1 ally (Warbot) 17646 | -6/Factory | Evolved 2 slots: Utility x2 17647 | -6/Factory | Identified exit to Factory 17647 | -6/Factory | Identified exit to Lower Caves 17650 | -6/Factory | Loaded intel: 287 machine locations 17651 | -6/Factory | Loaded intel: 235 non-interactive machine locations 17652 | -6/Factory | Loaded intel: 4 garrison access locations 18021 | -6/Factory | Incoming investigation squad redirected 18106 | -6/Factory | Identified exit to Garrison 18140 | -6/Factory | Garrison activated, responded to threat 18153 | -6/Factory | Entered Garrison 18153 | -6/Garrison | Accompanied by 3 allies (Warbot) 18174 | -6/Garrison | Triggered checkpoint 18184 | -6/Garrison | Build established: Scavenger-Mutant 18229 | -6/Garrison | Found embedded Infiltrators 18286 | -6/Garrison | Garrison Relay disabled 18326 | -6/Garrison | Triggered checkpoint 18387 | -6/Garrison | Expanded RIF knowledge: Patrol Navigation 18420 | -6/Garrison | Garrison Relay disabled 18469 | -6/Garrison | Spotted B-75 Beast 18469 | -6/Garrison | Spotted B-75 Beast 18554 | -6/Garrison | Spotted B-75 Beast 18616 | -6/Garrison | Destroyed B-75 Beast 18638 | -6/Garrison | Triggered checkpoint 18652 | -6/Garrison | Triggered checkpoint 18741 | -6/Garrison | Discovered new exit (range 12) 18818 | -6/Garrison | Triggered checkpoint 18956 | -6/Garrison | Garrison Relay disabled 19310 | -6/Garrison | Discovered new exit (range 10) 19344 | -6/Garrison | Entered Factory 20564 | -6/Factory | Discovered exit to Lower Caves (range 14) 20694 | -6/Factory | Garrison activated, responded to threat 20717 | -6/Factory | Incoming investigation squad redirected 20742 | -6/Factory | Incoming assault squad redirected 21075 | -6/Factory | Discovered exit to Factory (range 10) 21111 | -6/Factory | Discovered exit to Lower Caves (range 15) 21222 | -6/Factory | Incoming investigation squad redirected 21319 | -6/Factory | Entered Lower Caves 21319 | -6/Lower Caves | Accompanied by 1 ally 21325 | -6/Lower Caves | Ambushed by wild Derelicts 21352 | -6/Lower Caves | Build established: Mutant 21364 | -6/Lower Caves | A Derelict revealed a hidden shortcut to a safe place 21425 | -6/Lower Caves | Learned 12 Factory zone layouts 21441 | -6/Lower Caves | Encountered a Warlord checkpoint 22144 | -6/Lower Caves | Identified exit to Zion 22145 | -6/Lower Caves | Entered Zion 22181 | -6/Zion | System corruption cleaned by Quarantine Array 22356 | -6/Zion | Discovered new exit (range 12) 36716 | -6/Zion | RIF detected upon attempting to enter Zion 36716 | -6/Zion | Attacked by Zionites 36718 | -6/Zion | Spotted OP-FI4(B) 36736 | -6/Zion | Destroyed OP-FI4(B) 36744 | -6/Zion | Spotted 5U-KZ0(B) 36782 | -6/Zion | Destroyed 5U-KZ0(B) 36985 | -6/Zion | Destroyed Imprinter 37026 | -6/Zion | Extracted access codes from Imprinter's data core 37064 | -6/Zion | Lost 3 parts (2p1u) 37338 | -6/Zion | Found Prototype Special Weapon 37343 | -6/Zion | Found Prototype Special Weapon 37343 | -6/Zion | Identified RU-N14's Throwing Claymores (x2) 37347 | -6/Zion | Found RU-N14's Throwing Claymores 37350 | -6/Zion | Found RU-N14's Throwing Claymores 37362 | -6/Zion | Identified exit to Deep Caves 38049 | -6/Zion | Build established: Scavenger-Mutant 38262 | -6/Zion | Identified exit to Proximity Caves 38263 | -6/Zion | Entered Proximity Caves 38664 | -5/Proximity Caves | System corruption reached 10% 38934 | -5/Proximity Caves | Learned Factory terminal intel 38941 | -5/Proximity Caves | Build established: Derelict-Mutant 39082 | -5/Proximity Caves | Discovered exit to Factory (range 15) 39111 | -5/Proximity Caves | Entered Factory 39111 | -5/Factory | Evolved 2 slots: Propulsion x1, Utility x1 39112 | -5/Factory | Identified exit to Upper Caves 39114 | -5/Factory | Loaded intel: 28 terminal locations 39202 | -5/Factory | Identified exit to Extension 39441 | -5/Factory | Entered Extension 39648 | -5/Extension | Energy Cycler disabled 39648 | -5/Extension | Rescued a captive Derelict 39648 | -5/Extension | Rescued a captive Derelict 39648 | -5/Extension | Rescued a captive Derelict 39649 | -5/Extension | Rescued a captive Derelict 39649 | -5/Extension | Rescued a captive Derelict 39650 | -5/Extension | Rescued a captive Derelict 39651 | -5/Extension | Rescued a captive Derelict 39651 | -5/Extension | Rescued a captive Derelict 39652 | -5/Extension | Rescued a captive Derelict 39653 | -5/Extension | Rescued a captive Derelict 39654 | -5/Extension | Rescued a captive Derelict 39668 | -5/Extension | Local machine network offline 39766 | -5/Extension | Disrupted transfer network 39797 | -5/Extension | Lost 3 parts (2n1u) 39803 | -5/Extension | Destroyed 7 combat bots 40048 | -5/Extension | Lost 3 parts (2n1w) 40254 | -5/Extension | Build established: Scavenger-Mutant 40395 | -5/Extension | Spotted B-75 Beast 40419 | -5/Extension | Destroyed B-75 Beast 40422 | -5/Extension | Discovered new exit (range 15) 40512 | -5/Extension | Extracted ID and sensor layout for unrecognized location from A7's data core 40860 | -5/Extension | Discovered new exit (range 10) 40862 | -5/Extension | Discovered new exit (range 6) 40883 | -5/Extension | Identified exit to Cetus 40885 | -5/Extension | Entered Cetus 40885 | -5/Cetus | Accompanied by 3 allies 40902 | -5/Cetus | Spotted Cetus Guard 40902 | -5/Cetus | Spotted Cetus Guard 40904 | -5/Cetus | Spotted Cetus Guard 40907 | -5/Cetus | Destroyed Cetus Guard 40909 | -5/Cetus | Spotted Cetus Guard 40913 | -5/Cetus | Destroyed Cetus Guard 40922 | -5/Cetus | Destroyed Cetus Guard 40929 | -5/Cetus | Destroyed Cetus Guard 41121 | -5/Cetus | Discovered new exit (range 16) 41150 | -5/Cetus | Spotted Cetus Guard 41150 | -5/Cetus | Spotted Cetus Guard 41153 | -5/Cetus | Destroyed Cetus Guard 41153 | -5/Cetus | Spotted Cetus Guard 41166 | -5/Cetus | Destroyed Cetus Guard 41177 | -5/Cetus | Destroyed Cetus Guard 41184 | -5/Cetus | Spotted Cetus Guard 41195 | -5/Cetus | Destroyed Cetus Guard 41207 | -5/Cetus | Discovered new exit (range 16) 41215 | -5/Cetus | Met Revision 17 41274 | -5/Cetus | Identified exit to Archives 41278 | -5/Cetus | Entered Archives 41367 | -5/Archives | Discovered new exit (range 4) 41556 | -5/Archives | Discovered new exit (range 4) 41581 | -5/Archives | Met Zhirov 41587 | -5/Archives | Reinforcements dispatched to Archives 41596 | -5/Archives | Read partially decrypted archive contents 41604 | -5/Archives | Zhirov warped through subspace 41605 | -5/Archives | Local machine network offline 41622 | -5/Archives | Zhirov detonated Archives 41631 | -5/Archives | Identified exit to Hub_04(d) 41653 | -5/Archives | Lost 4 parts (1p2u1w) 41716 | -5/Archives | Discovered exit to Hub_04(d) (range 16) 41757 | -5/Archives | Entered Hub_04(d) 41904 | -5/Hub_04(d) | Discovered new exit (range 18) 42057 | -5/Hub_04(d) | First assault squad dispatched 42083 | -5/Hub_04(d) | Incoming assault squad redirected 42164 | -5/Hub_04(d) | Incoming assault squad redirected 42236 | -5/Hub_04(d) | Discovered new exit (range 15) 42257 | -5/Hub_04(d) | Identified exit to Factory 42309 | -5/Hub_04(d) | Entered Factory 42309 | -4/Factory | Evolved 2 slots: Utility x2 42321 | -4/Factory | Identified exit to DSF 42324 | -4/Factory | Entered DSF 42333 | -4/DSF | Lost 5 parts (1p1n2u1w) 42359 | -4/DSF | Additional patrols routed to DSF 42546 | -4/DSF | Lost 5 parts (1p3n1u) 42588 | -4/DSF | Discovered new exit (range 16) 42593 | -4/DSF | Build established: Mutant 42609 | -4/DSF | Identified exit to Research 42611 | -4/DSF | Entered Research 42611 | -3/Research | Evolved 2 slots: Propulsion x1, Utility x1 42720 | -3/Research | Fabricated X-77 Beamer (x2) 42738 | -3/Research | Garrison activated, responded to threat 42811 | -3/Research | Revision forces began assault on 0b10 42828 | -3/Research | Met up with Revision 17++ 43044 | -3/Research | Discovered new exit (range 16) 43068 | -3/Research | Found Prototype Processor 43068 | -3/Research | Identified Spectral Analyzer 43101 | -3/Research | Identified exit to Testing 43196 | -3/Research | Discovered new exit (range 15) 43202 | -3/Research | Identified exit to Research 43234 | -3/Research | Entered another Research area 43234 | -2/Research | Evolved 2 slots: Propulsion x1, Utility x1 43363 | -2/Research | Spotted B-90 Cyclops 43377 | -2/Research | Discovered new exit (range 13) 43384 | -2/Research | Identified exit to Quarantine 43384 | -2/Research | Entered Quarantine 43470 | -2/Quarantine | Found Sigix Corpse 43476 | -2/Quarantine | Found Sigix Corpse 43502 | -2/Quarantine | Found Alien Artifact 43569 | -2/Quarantine | Discovered new exit (range 10) 43571 | -2/Quarantine | Identified exit to Access 43572 | -2/Quarantine | Entered Access 43572 | -1/Access | Evolved 2 slots: Utility x2 43758 | -1/Access | Lost 3 parts (2n1u) 43788 | -1/Access | Discovered new exit (range 6) 43810 | *** | Escaped! Last Messages --------------- 43794_ H-88 Terminator Lgt. Quantum Reactor critical resonance detonation. 43794_ K-01 Serf Lgt. Ion Engine critical resonance detonation. 43794_ K-01 Serf destroyed. 43794_ Penetrated by Slug. 43795_ Slug penetrates Sealed Heavy Doors. 43795_ Penetrated by Slug. 43799_ Slug penetrates Sealed Heavy Doors. 43799_ H-88 Terminator suffers critical hit (Meltdown). 43799_ Adv. Targeting Computer melted. 43800_ R-10 Processor collects KE Penetrator. 43802_ Slug penetrates Sealed Heavy Doors. 43802_ Penetrated by Slug. 43802_ Adv. Sensor Array destroyed. 43803_ U-05 Engineer lays Concrete. 43805_ Destroyed KE Penetrator. 43806_ Penetrated by Slug. 43807_ U-05 Engineer lays Concrete. 43807_ H-88 Terminator destroyed. 43808_ U-05 Engineer lays Concrete. 43809_ Dropped Enh. Nova Cannon. Map ----- +----------------------------------------------------+ | ??????????????????# ?# ## ??????????? | | ??????????????????# ?# ## ???????????? | | ??????????????????#######??# ## ??????????? | | ???????????????????????????# ## ??????????? | | ???????????????????????????# ## """"????????? | | ???????????????????????????# ## """"" ? #???? | | ???????????????????????????# ## """"" ????? | | ???????????????????????????# ## """" ??????? | | ????????????????############ ## " ????????? | | ????????????????# = ## ## = ??????????? | | ????????????????# ## ## ????????????? | | ????????????????# " G"" # ###+######????????? | | ????????????????# !" " + T" #????????? | | ????????????????# " " # " #????????? | | ????????????????# % # ####### #????????? | | ????????????????# ######?????# #????????? | | ????????????????# #??????????# #????????? | | ????????????????###########??????????# #????????? | | ?????????????????????????????????????# ##???????? | | ?????????????????????????????###????## "##??????? | | ????????????????????########## ####;; " #??????? | | ????????????????????" !% "##??????? | | ????????????????????" [%% " #??????? | | ????????????????????" %= ; #??????? | | ????????????????????" ] % ; #??????? | | ????????????????????" "@ u ;#???????? | | ????????????????????" "" ##???????? | | ????????????????????" #????????? | | ????????????????????" #????????? | | ????????????????????" """ """ #????????? | | ????????????????????" """T""" #????????? | | ????????????????????########## ####### #????????? | | ?????????????????????????????###?????# #????????? | | ?????????????????????????????????????# #????????? | | ?????????????????????????????????????# #????????? | | ?????????????????????????????????????# #????????? | | ?????????????????????????????????????# ????????? | | ?????????????????????????????????????# #????????? | | ????????????????????????????????????? #????????? | | ????????????????????????????????????? #????????? | | ?????????????????????????????????????###?????????? | | ?????????????????????????????????????????????????? | | ?????????????????????????????????????????????????? | | ?????????????????????????????????????????????????? | | ?????????????????????????????????????????????????? | | ?????????????????????????????????????????????????? | | ?????????????????????????????????????????????????? | | ?????????????????????????????????????????????????? | | ?????????????????????????????????????????????????? | | ?????????????????????????????????????????????????? | +----------------------------------------------------+ Best States ------------- Heat Dissipation 75 Energy Generation 43 Energy Capacity 930 Matter Stores 300 Matter Capacity 300 Sight Range 22 Robot Scan Range 16 Terrain Scan Density 85 Power Amplification 20 Armor Coverage 1600 Resistance: KI 25 Resistance: TH 10 Resistance: EM 25 Propulsion Shielding 33 Phase Shifting 15 Evasion (%) 73 Targeting Accuracy 14 Melee Accuracy 8 Target Analysis 5 Core Analysis 6 Recoil Reduction 6 Salvage Targeting 4 Defensive Hacking 11 Relay Coupler Types 2 Relay Coupler Value 49 Authchip Count 2 Item Schematics ----------------- Combat Drone Bay | -7/Data Miner | Free Lgt. Regenerative Plating | -7/Data Miner | Free Cld. Aerolev Unit | -7/Data Miner | Free Exp. Propulsion Shielding | -7/Data Miner | Free Imp. Heavy Machine Gun | -7/Data Miner | Free Cmb. Gravmag System | -7/Data Miner | Free Point Defense System | -7/Data Miner | Free Imp. Plasma Cutter | -7/Data Miner | Free Force Field | -7/Data Miner | Free Arm. Medium Treads | -7/Data Miner | Free Beamcaster | -6/Zion | Free Hvy. Beamcaster | -6/Zion | Free Hvy. Riot Gun | -6/Zion | Free Battle Rifle | -6/Zion | Free Slug Cannon | -6/Zion | Free Bore Cannon | -6/Zion | Free Enh. Flamer | -6/Zion | Free Tactical Coordination Suite | -6/Zion | Free Hvy. Shock Bomb Launcher | -6/Zion | Archive Hvy. Flak Cannon | -6/Zion | Archive Imp. System Guard | -6/Zion | Archive Angular Momentum Engine | -6/Zion | Archive Remote Force Field | -6/Zion | Archive Hyp. Gauss Rifle | -6/Zion | Archive Hvy. Phase Cannon | -6/Zion | Archive Fusion Compressor | -6/Zion | Archive Imp. Dynamic Insulation System | -6/Zion | Archive Impulse Thruster | -6/Zion | Archive Hyp. Coil Gun | -6/Zion | Archive Adv. Heat Sink | -6/Zion | Archive Flexi-carbon Leg | -6/Zion | Archive Imp. Kinecellerator | -6/Zion | Archive Com. HERF Cannon | -5/Factory | Hacked Robot Schematics ------------------ L-41 Fighter | -7/Data Miner | Free M-14 Sweeper | -7/Data Miner | Free H-55 Commando | -7/Data Miner | Free B-48 Gladiator | -7/Data Miner | Free E-15 Imp | -7/Data Miner | Free C-57 Dissector | -6/Zion | Archive T-07 Excavator | -6/Zion | Archive R-10 Processor | -6/Zion | Archive C-17 Slicer | -6/Zion | Archive Fabricated ------------ X-77 Beamer | x2 | -3/Research | Preloaded, Authchip Alien Tech Used ----------------- None Achievements -------------- None Challenges ------------ None Game ------ Seed CorruptionBombCharger Manual? 0 Play Time 03:09:49 Cumulative 1395.6 hours Start 2023.08.08 @ 02:52:13 End 2023.08.09 @ 02:52:02 Sessions 3 Manual Loads 0 Difficulty Rogue Special Mode None Game No. 988 Rogue 984 Adventurer 4 Explorer 0 Win Type 0 Total 164 Types 122/11/10/7/2/1/1/6/4 Lore% 96 Gallery% 98 Achievement% 98 Wizard Run 0 Options --------- ASCII 0 Keyboard 1 Movement Vi Keybinds 0 Fullscreen 0 Font 20/X11 Map View 76x50 Tactical HUD 1 Map Filters NONE Filters NONE Steam 1 RUN: 79c42025-8181-4058-978f-8c39354beb4c